{"text_format":"2","workbook":"xlsx","n_sheets":6,"sheets":["Főösszesítő","Munkanem összesítő","Holland orchidea és páfrányház","Lepkeház","Trópusi ház 1","Trópusi ház 2"],"not_rendered":{"charts":0,"images":0,"macros":0,"external_links":0,"defined_names":0,"comments":0,"pivot_tables":0},"unopened":[],"bounds":{"document_bytes":16777216,"sheet_cells":100000,"run_cost":"one","rows_first":2000,"rows_last":500,"rows_between":2000,"halvings":0,"cell_chars":16384,"cell_head_chars":4096},"cells_cut":0,"cells_raw":0,"read":"whole","date_system":"1900"}

{"sheet":"Főösszesítő","index":0,"n_rows":14,"n_cols":4,"rows_kept":14,"cut":false,"hidden":false,"merged":[[12,2,12,3],[13,2,13,3],[0,0,0,3],[4,0,4,3],[7,2,7,3],[8,2,8,3],[9,2,9,3]]}
["Kitöltötte: "]
[]
["Tárgy: 6726 Szeged, Lövölde utca 42. „Fűvészkert” Üvegházak hűtési-és öntözőrendszerét ellátó párásító rendszer kialakítása"]
[]
["Költségvetés főösszesítő"]
["Megnevezés",null,"Anyagköltség","Díjköltség"]
["1 Építmény közvetlen költségei",null,{"$f":"'Munkanem összesítő'!C6","v":0},{"$f":"'Munkanem összesítő'!D6","v":0}]
["2.1 ÁFA vetítési alap",null,{"$f":"ROUND(C7+D7,0)","v":0}]
["2.2 ÁFA",0.27,{"$f":"ROUND(C8*B9,0)","v":0}]
["3 A munka ára (HUF)",null,{"$f":"ROUND(C9+C8,0)","v":0}]
[]
[]
[]
[null,null,"cégszerű aláírás"]

{"sheet":"Munkanem összesítő","index":1,"n_rows":6,"n_cols":4,"rows_kept":6,"cut":false,"hidden":false,"merged":[]}
["Ssz.","Megnevezés","Anyagköltség","Díjköltség"]
[1,"Holland orchidea és páfrányház",{"$f":"'Holland orchidea és páfrányház'!H16","v":0},{"$f":"'Holland orchidea és páfrányház'!I16","v":0}]
[2,"Lepkeház",{"$f":"Lepkeház!H13","v":0},{"$f":"Lepkeház!I13","v":0}]
[3,"Trópusi ház 1",{"$f":"'Trópusi ház 1'!H15","v":0},{"$f":"'Trópusi ház 1'!I15","v":0}]
[4,"Trópusi ház 2",{"$f":"'Trópusi ház 2'!H16","v":0},{"$f":"'Trópusi ház 2'!I16","v":0}]
[null,"Összesen (HUF)",{"$f":"ROUND(SUM(C2:C5),0)","v":0},{"$f":"ROUND(SUM(D2:D5),0)","v":0}]

{"sheet":"Holland orchidea és páfrányház","index":2,"n_rows":16,"n_cols":9,"rows_kept":16,"cut":false,"hidden":false,"merged":[]}
["Ssz.","Tételszám","Tétel szövege","Menny.","Egység","Anyag egységár","Díj egységre","Anyag összesen","Díj összesen"]
[1,null,"Magasnyomású szivattyú 4 l, 1,15 kW",1,"db",0,0,{"$f":"ROUND(F2*D2,0)","v":0},{"$f":"ROUND(G2*D2,0)","v":0}]
[2,null,"Komplett szűrőegység 3 poharas",1,"db",0,0,{"$f":"ROUND(F3*D3,0)","v":0},{"$f":"ROUND(G3*D3,0)","v":0}]
[3,null,"ventilátorgyűrű 40 cm, 5 fúvókás",2,"db",0,0,0,0]
[4,null,"ventilátor",1,"db",0,0,0,0]
[5,null,"T idom",3,"db",0,0,0,0]
[6,null,"Záró idom radiál",2,"db",0,0,0,0]
[7,null,"90°-os elem 2 ágú",3,"db",0,0,0,0]
[8,null,"Fúvókatartó",32,"db",0,0,0,0]
[9,null,"Fúvóka 20 mikron visszacsapó szeleppel",44,"db",0,0,0,0]
[10,null,"Polyamid tömlő",35,"db",0,0,0,0]
[11,null,"Hőmérséklet és páratartalom szabályozó",1,"db",0,0,0,0]
[12,null,"Szárazonfutás elleni védelem",1,"db",0,0,0,0]
[13,null,"Mágnesszelep víz bemeneti oldalra",1,"db",0,0,0,0]
[14,null,"Segédanyagok (tipli, csavar, bilincs, kötegelő, stb.)",1,"db",0,0,0,0]
[null,null,"Munkanem összesen (HUF)",{"$nulls":4},{"$f":"ROUND(SUM(H2:H15),0)","v":0},{"$f":"ROUND(SUM(I2:I15),0)","v":0}]

{"sheet":"Lepkeház","index":3,"n_rows":13,"n_cols":9,"rows_kept":13,"cut":false,"hidden":false,"merged":[]}
["Ssz.","Tételszám","Tétel szövege","Menny.","Egység","Anyag egységár","Díj egységre","Anyag összesen","Díj összesen"]
[1,null,"Magasnyomású szivattyú 2 l, 0,8 kW",1,"db",0,0,{"$f":"ROUND(F2*D2,0)","v":0},{"$f":"ROUND(G2*D2,0)","v":0}]
[2,null,"Komplett szűrőegység 3 poharas",1,"db",0,0,{"$f":"ROUND(F3*D3,0)","v":0},{"$f":"ROUND(G3*D3,0)","v":0}]
[3,null,"EUROJET radiális párásító ventilátor",2,"db",0,0,0,0]
[4,null,"T idom",1,"db",0,0,0,0]
[5,null,"90°-os elem 2 ágú",2,"db",0,0,0,0]
[6,null,"Fúvóka 20 mikron visszacsapó szeleppel",16,"db",0,0,0,0]
[7,null,"Polyamid tömlő",25,"db",0,0,0,0]
[8,null,"Többcsatornás távirányítós vezérlés",1,"db",0,0,0,0]
[9,null,"Szárazonfutás elleni védelem",1,"db",0,0,0,0]
[10,null,"Mágnesszelep víz bemeneti oldalra",1,"db",0,0,0,0]
[11,null,"Segédanyagok (tipli, csavar, bilincs, kötegelő, stb.)",1,"db",0,0,0,0]
[null,null,"Munkanem összesen (HUF)",{"$nulls":4},{"$f":"ROUND(SUM(H2:H12),0)","v":0},{"$f":"ROUND(SUM(I2:I12),0)","v":0}]

{"sheet":"Trópusi ház 1","index":4,"n_rows":15,"n_cols":9,"rows_kept":15,"cut":false,"hidden":false,"merged":[]}
["Ssz.","Tételszám","Tétel szövege","Menny.","Egység","Anyag egységár","Díj egységre","Anyag összesen","Díj összesen"]
[1,null,"Magasnyomású szivattyú 6 l, 1,5 kW",1,"db",0,0,{"$f":"ROUND(F2*D2,0)","v":0},{"$f":"ROUND(G2*D2,0)","v":0}]
[2,null,"Komplett szűrőegység 3 poharas",1,"db",0,0,{"$f":"ROUND(F3*D3,0)","v":0},{"$f":"ROUND(G3*D3,0)","v":0}]
[3,null,"EUROJET radiális párásító ventilátor",6,"db",0,0,0,0]
[4,null,"T idom",6,"db",0,0,0,0]
[5,null,"Záró idom radiál",2,"db",0,0,0,0]
[6,null,"90°-os elem 2 ágú",7,"db",0,0,0,0]
[7,null,"Fúvókatartó",29,"db",0,0,0,0]
[8,null,"Fúvóka 20 mikron visszacsapó szeleppel",79,"db",0,0,0,0]
[9,null,"Polyamid tömlő",110,"db",0,0,0,0]
[10,null,"Hőm. és páratartalom szabályozó 2 körös",1,"db",0,0,0,0]
[11,null,"Szárazonfutás elleni védelem",1,"db",0,0,0,0]
[12,null,"Mágnesszelep víz bemeneti oldalra",1,"db",0,0,0,0]
[13,null,"Segédanyagok (tipli, csavar, bilincs, kötegelő, stb.)",1,"db",0,0,0,0]
[null,null,"Munkanem összesen (HUF)",{"$nulls":4},{"$f":"ROUND(SUM(H2:H14),0)","v":0},{"$f":"ROUND(SUM(I2:I14),0)","v":0}]

{"sheet":"Trópusi ház 2","index":5,"n_rows":16,"n_cols":9,"rows_kept":16,"cut":false,"hidden":false,"merged":[]}
["Ssz.","Tételszám","Tétel szövege","Menny.","Egység","Anyag egységár","Díj egységre","Anyag összesen","Díj összesen"]
[1,null,"Magasnyomású szivattyú 1 l, 0,55 kW",1,"db",0,0,{"$f":"ROUND(F2*D2,0)","v":0},{"$f":"ROUND(G2*D2,0)","v":0}]
[2,null,"Komplett szűrőegység 3 poharas",1,"db",0,0,{"$f":"ROUND(F3*D3,0)","v":0},{"$f":"ROUND(G3*D3,0)","v":0}]
[3,null,"ventilátorgyűrű 40 cm, 5 fúvókás",1,"db",0,0,0,0]
[4,null,"ventilátor",1,"db",0,0,0,0]
[5,null,"T idom",2,"db",0,0,0,0]
[6,null,"Záró idom radiál",2,"db",0,0,0,0]
[7,null,"90°-os elem 2 ágú",6,"db",0,0,0,0]
[8,null,"Fúvókatartó",9,"db",0,0,0,0]
[9,null,"Fúvóka 20 mikron visszacsapó szeleppel",16,"db",0,0,0,0]
[10,null,"Polyamid tömlő",35,"db",0,0,0,0]
[11,null,"Hőm. és páratartalom szabályozó 3 körös",1,"db",0,0,0,0]
[12,null,"Szárazonfutás elleni védelem",1,"db",0,0,0,0]
[13,null,"Mágnesszelep víz bemeneti oldalra",1,"db",0,0,0,0]
[14,null,"Segédanyagok (tipli, csavar, bilincs, kötegelő, stb.)",1,"db",0,0,0,0]
[null,null,"Munkanem összesen (HUF)",{"$nulls":4},{"$f":"ROUND(SUM(H2:H15),0)","v":0},{"$f":"ROUND(SUM(I2:I15),0)","v":0}]